Cogmind - Beta 11.1 @@@ ROGUE MODE // 2022.05.08 @ 20:56:58 Player: Loquitran Result: Destroyed by as-03310 with Assembled Heavy Rifle Performance ------------- Evolutions (0) 0 Regions Visited (4) 800 Robots Destroyed (14) 70 Value Destroyed (354) 354 Prototype IDs (5) 100 Alien Tech Used (0) 0 Bonus (339) 339 TOTAL SCORE: 1663 Bonus ------- Follower Combat Kills 39 Aligned with FarCom 300 Cogmind --------- Core Integrity 0/250 Matter 259/300 Energy 55/100 System Corruption 0% Temperature Cool (0) Movement Core (100) Ox1 Location -9/Mines Parts ------- > --- POWER (1) -------- (None) > --- PROPULSION (2) --- (None) > --- UTILITY (2) ------ Small Storage Unit 0b10 Alert Chip > --- WEAPON (2) ------- Mining Laser > --- INVENTORY (8) ---- Light Ion Engine Light Treads Improved Heat Sink Peak State ------------ > --- POWER ------------ Ion Engine > --- PROPULSION ------- Aluminum Leg Aluminum Leg > --- UTILITY ---------- 0b10 Alert Chip Supersonic Drone Bay > --- WEAPON ----------- Particle Gun Light Cannon > --- INVENTORY -------- Light Ion Engine Light Treads Light Treads Improved Heat Sink Grenade Launcher [Rating: 20] Favorites ----------- Power Ion Engine Engine Ion Engine Propulsion Aluminum Leg Leg Aluminum Leg Wheel Wheel Utility Small Storage Unit Device Improved Heat Sink Storage Small Storage Unit Processor 0b10 Alert Chip Weapon Light Cannon Energy Gun Particle Gun Ballistic Gun Light Assault Rifle Ballistic Cannon Light Cannon Launcher Grenade Launcher Special Weapon Mining Laser Build | -11 -10 -10 -10 -9 ------- Run | Scr Mat Min Exi Min Slots Evolved . | . . . . . Power . | . . . . . Propulsion . | . . . . . Utility . | . . . . . Weapon . | . . . . . Parts Attached 20 | . 5 2 3 10 Power . | . . . . . Engine . | . . . . . Core . | . . . . . Reactor . | . . . . . Propulsion 3 | . 1 . . 2 Treads . | . . . . . Leg 1 | . 1 . . . Wheel 2 | . . . . 2 Hover . | . . . . . Flight . | . . . . . Utility 5 | . 2 . 3 . Device 3 | . 2 . 1 . Storage 1 | . . . 1 . Processor 1 | . . . 1 . Hackware . | . . . . . Protection . | . . . . . Artifact . | . . . . . Weapon 12 | . 2 2 . 8 Energy Gun 3 | . 1 . . 2 Energy Cannon . | . . . . . Ballistic Gun 3 | . . . . 3 Ballistic Cannon 2 | . 1 1 . . Launcher 2 | . . 1 . 1 Special Weapon 2 | . . . . 2 Impact Weapon . | . . . . . Slashing Weapon . | . . . . . Piercing Weapon . | . . . . . Special Melee Weapon . | . . . . . Unidentified Prototypes 2 | . . . 2 . Parts Lost 10 | . . . . 10 Power 1 | . . . . 1 Propulsion 4 | . . . . 4 Utility . | . . . . . Weapon 5 | . . . . 5 Highest Loss Streak 6 | . . . . 6 To Critical Strikes . | . . . . . Average Slot Usage (%) 94 | . 92 100 100 91 Engine 13 | . 14 14 14 13 Leg 23 | . 28 28 28 11 Wheel 2 | . . . . 9 Device 5 | . 6 14 6 . Storage 14 | . 14 14 14 14 Processor 5 | . . . 7 14 Energy Gun 11 | . 14 14 14 4 Ballistic Gun 6 | . 3 . . 17 Ballistic Cannon 10 | . 10 14 14 5 Naked Turns . | . . . . . Heaviest Build 17 | 12 17 17 17 16 Greatest Support 20 | 20 20 20 20 20 Greatest Overweight (x) 1 | . . . . 1 Average Overweight (x) . | . . . . . Largest Inventory Capacity 8 | 8 8 8 8 8 Average Capacity 7 | 8 8 8 7 8 Most Carried 8 | 6 8 8 8 8 Average Carried 7 | 6 7 8 7 6 Final Capacity 8 | 8 8 8 8 8 Final Carried 8 | 6 8 8 8 3 Class Distribution -------------------- 100% | Mutant Dominant Class ---------------- Mutant | -10/Materials Mutant | -10/Mines Mutant | -10/Exiles Mutant | -9/Mines Resources | -11 -10 -10 -10 -9 ----------- Run | Scr Mat Min Exi Min Matter Collected 522 | 202 144 30 . 146 Remotely . | . . . . . Salvage Created 430 | . 345 30 . 55 Parts 28 | . 25 3 . . Haulers Intercepted 1 | . 1 . . . Recyclers Shooed . | . . . . . Parts Field Recycled . | . . . . . Retrieved Matter . | . . . . . Parts Self-Destructed . | . . . . . Prevented . | . . . . . Kills | -11 -10 -10 -10 -9 ------- Run | Scr Mat Min Exi Min Combat Hostiles Destroyed 16 | . 7 3 . 6 Guns 9 | . 4 . . 5 Cannons 3 | . 3 . . . AOE 4 | . . 3 . 1 Classes Destroyed 5 | . 3 1 . 1 Hauler 1 | . 1 . . . Watcher 3 | . 3 . . . Swarmer 3 | . . 3 . . Grunt 7 | . 7 . . . Assembled 6 | . . . . 6 Best Kill Streak 3 | . 3 3 . 2 Combat Bots Only 3 | . 3 3 . 2 Max Kills in Single Turn 3 | . 1 3 . 1 Gunslinging . | . . . . . Exploded 3 | . . 3 . 1 Melee . | . . . . . Uniques/NPCs Destroyed . | . . . . . Combat | -11 -10 -10 -10 -9 -------- Run | Scr Mat Min Exi Min Damage Taken 1204 | . 234 38 . 932 Core 257 | . 21 . . 236 Absorbed by Shields . | . . . . . Core Remaining (%) 100 | 100 . . . . Volleys Fired 71 | 2 31 1 . 37 Largest 2 | 2 2 2 . 2 Hottest 100 | 60 100 95 . 100 Shots Fired 132 | 4 60 2 . 66 Gun 98 | 4 39 1 . 54 Cannon 28 | . 21 . . 7 Launcher 4 | . . 1 . 3 Special 2 | . . . . 2 Kinetic 84 | 2 31 . . 51 Thermal 44 | 2 29 1 . 12 Explosive 4 | . . 1 . 3 Electromagnetic . | . . . . . Robot Hit Streak 6 | 2 6 . . 6 Robot Miss Streak 7 | 2 5 . . 7 Penetration Max . | . . . . . Secondary Targets . | . . . . . Shots Hit Robots 65 | 2 34 . . 29 Core Hits 45 | . 18 3 . 24 Critical Kills . | . . . . . Critical Parts Destroyed . | . . . . . Critical Strikes 1 | . 1 . . . Blast 1 | . 1 . . . Melee Attacks . | . . . . . Impact . | . . . . . Slashing . | . . . . . Piercing . | . . . . . Sneak Attacks . | . . . . . Combat Hostiles . | . . . . . Follow-up Attacks . | . . . . . Damage Inflicted 1010 | 17 469 110 . 414 Guns 475 | 17 243 . . 215 Cannons 283 | . 226 . . 57 Explosions 252 | . . 110 . 142 Melee . | . . . . . Ramming . | . . . . . Kinetic 532 | 7 268 . . 257 Thermal 226 | 10 201 . . 15 Explosive 252 | . . 110 . 142 Electromagnetic . | . . . . . Impact . | . . . . . Slashing . | . . . . . Piercing . | . . . . . Highest Corruption . | . . . . . Average Corruption . | . . . . . Corruption Purged . | . . . . . Corruption Blocked . | . . . . . Overload Shots . | . . . . . Overflow Damage . | . . . . . Projectiles . | . . . . . Explosions . | . . . . . Melee . | . . . . . Knockbacks 6 | . 5 . . 1 Impact . | . . . . . Kinetic 6 | . 5 . . 1 Secondary . | . . . . . Self-Inflicted Damage 78 | . . 38 . 40 Shots 2 | . . 1 . 1 Rammed . | . . . . . Targets Rammed . | . . . . . Kicked . | . . . . . Crushed . | . . . . . Highest Temperature 259 | 40 259 . . 258 Average Temperature 102 | 20 73 . . 152 Received Heat Transfer 250 | . 150 . . 100 Effects 2 | . 1 . . 1 Interference 2 | . 1 . . 1 Siege Activations . | . . . . . Robots Corrupted . | . . . . . Combat Hostiles . | . . . . . Parts Fried . | . . . . . Impact Corruptions . | . . . . . Robots Melted . | . . . . . Combat Hostiles . | . . . . . Parts Melted . | . . . . . Heat Transferred 509 | 25 447 . . 37 Parts Sabotaged . | . . . . . Parts Stolen . | . . . . . Parts Stripped . | . . . . . Power Chain Reactions . | . . . . . Missiles Intercepted . | . . . . . Alert | -11 -10 -10 -10 -9 ------- Run | Scr Mat Min Exi Min Peak Influence 277 | . 277 173 . 26 Initial 40 | . . 40 . . Average 94 | . 148 170 . 3 Maximum Alert Level 1 | . 1 . . . Low Security (%) 79 | 100 59 100 . 100 Level 1 20 | . 40 . . . Level 2 . | . . . . . Level 3 . | . . . . . Level 4 . | . . . . . Level 5 . | . . . . . High Security . | . . . . . Max Security . | . . . . . Squads Dispatched 1 | . 1 . . . Investigation 1 | . 1 . . . Extermination . | . . . . . Reinforcement . | . . . . . Assault . | . . . . . Garrison . | . . . . . Intercept . | . . . . . Searches Triggered . | . . . . . Construction Impeded . | . . . . . Haulers Reinforced . | . . . . . Active Scanning Responses . | . . . . . Cargo Convoy Interrupts . | . . . . . Stealth | -11 -10 -10 -10 -9 --------- Run | Scr Mat Min Exi Min Distress Signals 1 | . 1 . . . Communications Jammed . | . . . . . Distress Signals . | . . . . . Times Spotted 27 | . 14 3 . 10 Peak Tracking Total 4 | . 4 . . 3 Tactical Retreats 3 | . 1 . . 2 Traps | -11 -10 -10 -10 -9 ------- Run | Scr Mat Min Exi Min Traps Triggered . | . . . . . Indirectly . | . . . . . Trap Hack Attempts . | . . . . . Triggered . | . . . . . Disarmed . | . . . . . Reprogrammed . | . . . . . Reused . | . . . . . Traps Extracted . | . . . . . Installed . | . . . . . Triggered . | . . . . . Machines | -11 -10 -10 -10 -9 ---------- Run | Scr Mat Min Exi Min Machines Disabled 1 | . . 1 . . Max in Single Turn 1 | . . 1 . . Machines Sabotaged . | . . . . . Garrisons Compromised . | . . . . . Overloaded Fab Kills . | . . . . . Hacking | -11 -10 -10 -10 -9 --------- Run | Scr Mat Min Exi Min Machines Accessed 5 | . 4 1 . . Terminals 5 | . 4 1 . . Fabricators . | . . . . . Repair Stations . | . . . . . Recycling Units . | . . . . . Scanalyzers . | . . . . . Garrison Access . | . . . . . Total Hacks 9 | . 6 3 . . Successful 5 | . 3 2 . . Failed 4 | . 3 1 . . Catastrophic 1 | . . 1 . . Database Lockouts . | . . . . . Manual 7 | . 4 2 1 . Terminals 9 | . 6 3 . . Fabricators . | . . . . . Repair Stations . | . . . . . Recycling Units . | . . . . . Scanalyzers . | . . . . . Garrison Access . | . . . . . Terminal Hacks 5 | . 3 2 . . Prototype ID Bank 3 | . 2 1 . . Branch Access Points 1 | . 1 . . . Alert Level 1 | . . 1 . . Fabricator Hacks . | . . . . . Repair Station Hacks . | . . . . . Recycling Unit Hacks . | . . . . . Scanalyzer . | . . . . . Garrison Access Hacks . | . . . . . Unauthorized Hacks . | . . . . . Terminals . | . . . . . Fabricators . | . . . . . Repair Stations . | . . . . . Recycling Units . | . . . . . Scanalyzers . | . . . . . Garrison Access . | . . . . . Data Cores Recovered . | . . . . . Used . | . . . . . Hacking Detections 2 | . 2 . . . Full Trace Events 1 | . 1 . . . Feedback Events . | . . . . . Feedback Blocked . | . . . . . Robot Schematics Acquired . | . . . . . Robots Built . | . . . . . Authchips . | . . . . . Time . | . . . . . Total Robot Build Rating . | . . . . . Part Schematics Acquired . | . . . . . Parts Built . | . . . . . Authchips . | . . . . . Time . | . . . . . Total Part Build Rating . | . . . . . Parts Repaired . | . . . . . Time . | . . . . . Parts Recycled . | . . . . . Recycled Matter . | . . . . . Retrieved Matter . | . . . . . Retrieved Components . | . . . . . Parts Scanalyzed . | . . . . . Part Schematics Acquired . | . . . . . Parts Damaged . | . . . . . Bothacking | -11 -10 -10 -10 -9 ------------ Run | Scr Mat Min Exi Min Used RIF Installer . | . . . . . Robots Hacked . | . . . . . Non-combat . | . . . . . Combat . | . . . . . Robot Hacks Applied . | . . . . . Relay Couplers Released . | . . . . . Fabnet Peak Effective % . | . . . . . Robots Rewired . | . . . . . Allies Hacked . | . . . . . Hacks Repelled . | . . . . . Allies | -11 -10 -10 -10 -9 -------- Run | Scr Mat Min Exi Min Total Allies 3 | . . 3 . . Largest Group 3 | . . 3 3 3 Highest-Rated Group 40 | . . 40 40 40 Highest-Rated Ally 16 | . . 16 16 16 Total Orders 1 | . . . . 1 FOLLOW 1 | . . . . 1 Ally Attacks 14 | . . . . 14 Total Damage 187 | . . . . 187 Kills 1 | . . . . 1 Allies Corrupted . | . . . . . Allies Melted . | . . . . . Intel | -11 -10 -10 -10 -9 ------- Run | Scr Mat Min Exi Min Robot Analysis Total . | . . . . . Derelict Logs Recovered 1 | . . . . 1 Drone Launches . | . . . . . Drone Recoveries . | . . . . . Exploration | -11 -10 -10 -10 -9 ------------- Run | Scr Mat Min Exi Min Turns Passed 1207 | 8 452 103 295 349 Spaces Moved 788 | 3 243 76 231 235 Core . | . . . . . Treads . | . . . . . Legs 629 | 3 243 76 231 76 Wheels 159 | . . . . 159 Hover . | . . . . . Flight . | . . . . . Fastest Speed 80 | 120 120 120 120 80 Average Speed 114 | 120 120 120 120 100 Slowest Speed 120 | 120 120 120 120 120 Overloaded Moves . | . . . . . Propulsion Burnouts . | . . . . . Robots Hopped . | . . . . . Cave-ins Triggered . | . . . . . Exploration Rate (%) 35 | 2 39 29 61 44 Regions Visited 4 Branch Regions 3 Pre-discovered Areas . | . . . . . Known Exits Taken 1 | . 1 . . . Unknown Exits Taken 3 | 1 . 1 1 . Scrap Searched . | . . . . . Spaces Dug 1 | . . . . 1 Terrain Destroyed 26 | . . 9 . 17 Melee . | . . . . . Projectile 2 | . . . . 2 AOE 24 | . . 9 . 15 Terrain Rammed . | . . . . . Walls Destroyed . | . . . . . Machines Disabled . | . . . . . Actions | -11 -10 -10 -10 -9 --------- Run | Scr Mat Min Exi Min Total 972 | 4 346 85 251 286 Wait 75 | . 61 7 4 3 Move 784 | 2 242 75 230 235 Hop . | . . . . . Pick Up 10 | . 3 . 7 . Fast Attach 3 | . 1 . 1 1 Attach 5 | . . . . 5 Detach . | . . . . . Swap 12 | . 4 2 2 4 Drop 12 | . 4 . 7 1 Fire 71 | 2 31 1 . 37 Melee . | . . . . . Ram . | . . . . . Kick . | . . . . . Crush . | . . . . . Escape Stasis . | . . . . . Rewire . | . . . . . Trap . | . . . . . Miscellaneous . | . . . . . Route ------- -11/Scrapyard -10/Materials (discovered 3 exits: [*Mat] / *Min x2) -10/Mines -10/Exiles -9/Mines History --------- Turn | Location | Event 1 | -11/Scrapyard | Discovered new exit (range 3) 9 | -11/Scrapyard | Entered Materials 301 | -10/Materials | Build established: Mutant 321 | -10/Materials | Discovered new exit (range 13) 358 | -10/Materials | Identified exit to Mines 461 | -10/Materials | Entered Mines 475 | -10/Mines | Met a Derelict bent on vengeance 493 | -10/Mines | Assisted by bots powering up and referring to "LRC-V3" 552 | -10/Mines | Deemed a non-threat by the Exiles lab entrance 554 | -10/Mines | Discovered new exit (range 5) 564 | -10/Mines | Entered Exiles 564 | -10/Exiles | Accompanied by 3 allies 593 | -10/Exiles | Met 8R-AWN 614 | -10/Exiles | Met EX-HEX 648 | -10/Exiles | Met EX-BIN 665 | -10/Exiles | Aligned with FarCom system 666 | -10/Exiles | Given EX-Vault access code 694 | -10/Exiles | Opened EX-Vault 702 | -10/Exiles | Found Prototype Ballistic Gun 706 | -10/Exiles | Found Prototype Processor 707 | -10/Exiles | Identified 0b10 Alert Chip 713 | -10/Exiles | Found Prototype Device 714 | -10/Exiles | Identified Supersonic Drone Bay 762 | -10/Exiles | Warned to stay clear of 0b10 Research branches 798 | -10/Exiles | Met EX-DEC 839 | -10/Exiles | Discovered new exit (range 14) 859 | -10/Exiles | Left Exiles lab with 0b10 Alert Chip 859 | -10/Exiles | Entered Mines 859 | -9/Mines | Accompanied by 3 allies 860 | -9/Mines | Assembled infested the area 861 | -9/Mines | Learned 8 Materials zone layouts 861 | -9/Mines | Joined a pair of Derelicts in attacking an 0b10 outpost 1018 | -9/Mines | Lost 3 parts (1n2w) 1192 | -9/Mines | Core integrity fell below 50% 1200 | -9/Mines | Core integrity fell below 20% 1208 | -9/Mines | Destroyed by as-03310 with Assembled Heavy Rifle Last Messages --------------- 01043_ A derelict is hurriedly installing traps. 01101_ as-50642 destroyed. 01105_ Acquired 11 matter. 01113_ Acquired 14 matter. 01116_ Acquired 3 matter. 01119_ Acquired 1 matter. 01121_ Acquired 2 matter. 01131_ Acquired 23 matter. 01133_ Acquired Wheel. 01165_ as-39696 destroyed. 01171_ Acquired 14 matter. 01173_ Acquired 16 matter. 01174_ Acquired 6 matter. 01178_ Wheel destroyed. 01195_ Ion Engine destroyed. 01197_ as-57843 destroyed. 01199_ Grenade Launcher destroyed. 01203_ Destroyed Asb. Hover Unit. 01204_ Lgt. Assault Rifle destroyed. 01204_ Wheel destroyed. Map ----- +----------------------------------------------------+ | ??????????????## ##????????# ## ^ #??? | | ???????????????## #?????????# #??? | | ????????????????# #?????????# #??? | | ????????????###?# ######???# ## ##?? | | ???????????## ## ##??# #### #?? | | ???????????# # #??## ##??# #?? | | ???????????# #### #???####???# #?? | | ????????????# ## #?????????## #?? | | ????????????# ####?????????# ##?? | | ????????????# ##????????????# #??? | | ????????????## ! * ##?????????????## ##??? | | ?????????????###*! ##???????????????####???? | | ???????????????#%###???????????????????????? | | ???????????????#=#?????????????????????????? | | ???????????????# #?????????????????????????? | | ?????????####### #?????????????????????????? | | ?????????# #?????????????????????????? | | ?? ##### #??#####???????####???????? | | ???????????????# #### ####?? #???????? | | ???????????????# #? #???????? | | ???????????????##### ## #???????? | | ???????????????????# # #????????? | | ???????????????????## #?????????? | | ????????????????????## ##?????????? | | ?????????????????????# aa ###??????????? | | ?????????????????????#; @ ##????????????? | | ?????????????????????## $ #?????????????? | | ??????????????????????### #?????????????? | | ????????????????????????## ##?????????????? | | ??????????????????????????###??????????????? | | ???????????????????????????????????????????? | | ???????????????????????????????????????????? | | ???????????????????????????????????????????? | | ???????????????????????????????????????????? | | ???????????????????????????????????????????? | | ???????????????????????????????????????????? | | ???????????????????????????????????????????? | | ???????????????????????????????????????????? | | ???????????????????????????????????????????? | | ???????????????????????????????????????????? | | ???????????????????????????????????????????? | | ???????????????????????????????????????????? | | ???????????????????????????????????????????? | | ???????????????????????????????????????????? | | ???????????????????????????????????????????? | | ???????????????????????????????????????????? | | ???????????????????????????????????????????? | | ???????????????????????????????????????????? | | ???????????????????????????????????????????? | | ???????????????????????????????????????????? | +----------------------------------------------------+ Best States ------------- Heat Dissipation 39 Energy Generation 10 Energy Capacity 250 Matter Stores 300 Matter Capacity 300 Sight Range 16 Terrain Scan Density 10 Evasion (%) 55 Item Schematics ----------------- None Robot Schematics ------------------ None Fabricated ------------ Nothing Alien Tech Used ----------------- None Achievements -------------- None Challenges ------------ None Game ------ Seed GaussStasisArchive Manual? 0 Play Time 00:17:51 Cumulative 13.1 hours Start 2022.05.08 @ 20:37:06 End 2022.05.08 @ 20:56:58 Sessions 1 Manual Loads 0 Difficulty Rogue Special Mode None Game No. 20 Rogue 20 Adventurer 0 Explorer 0 Win Type - Total 0 Types 0/0/0/0/0/0/0/0/0 Lore% 18 Gallery% 24 Achievement% 23 Wizard Run 0 Options --------- ASCII 0 Keyboard 0 Movement Numpad Keybinds 0 Fullscreen 0 Font 16/SmallcapsGlow Map View 112x50 Tactical HUD 1 Map Filters NONE Filters NONE Steam 1 RUN: aedccc33-0027-406b-895f-8e5d57594d6a